{"text_format":"1","workbook":"xlsx","n_sheets":3,"sheets":["Presentación y Defensa","Evaluación Final Memoria","Evaluación Final PT"],"not_rendered":{"charts":0,"images":2,"macros":1,"external_links":0,"defined_names":3,"comments":0,"pivot_tables":0},"unopened":[],"bounds":{"document_bytes":16777216,"sheet_cells":100000,"rows_first":2000,"rows_last":500,"rows_between":2000,"halvings":0,"cell_chars":16384,"cell_head_chars":4096},"cells_cut":0,"cells_raw":0,"read":"whole","date_system":"1900"}

{"sheet":"Presentación y Defensa","index":0,"n_rows":35,"n_cols":14,"rows_kept":35,"cut":false,"hidden":false,"merged":[[11,0,12,0],[12,1,12,8],[11,1,11,8],[32,1,32,8],[15,0,17,0],[28,1,28,8],[29,1,29,8],[30,1,30,8],[31,1,31,8],[18,1,18,8],[19,1,19,8],[20,1,20,8],[21,1,21,8],[22,1,22,8],[23,1,23,8],[24,1,24,8],[15,1,15,8],[16,1,16,8],[17,1,17,8],[13,1,13,8],[14,1,14,8],[27,1,27,8],[24,0,25,0],[21,0,22,0],[33,0,33,9],[34,0,34,9],[25,1,25,8],[26,1,26,8],[0,0,6,0],[11,10,12,10],[8,0,8,1],[8,2,8,10],[9,2,9,10],[11,9,12,9],[0,10,6,10],[0,1,0,9],[1,1,1,9],[2,1,2,9],[3,1,3,9],[4,1,4,9],[5,1,5,9],[6,1,6,9],[7,0,7,2],[7,3,7,10]]}
[null,"ESCUELA DE INGENIERÍAS INDUSTRIALES"]
[null,"UNIVERSIDAD DE EXTREMADURA"]
[null,"RÚBRICA PARA EVALUACIÓN DE LA PRESENTACIÓN"]
[null,"Y DEFENSA DEL TFG-TFM"]
[null,"Peso sobre la calificación final: 30%"]
[null,"(Rellenar sólo una rúbrica entre todos los miembros del tribunal, las valoraciones"]
[null,"deben decidirse por acuerdo de los miembros del tribunal)"]
["NOMBRE DEL ESTUDIANTE:"]
["TÍTULO DEL TRABAJO:"]
[]
["CONVOCATORIA:",null,"ENERO","DE",2015,null,null,null,null,null,null,null,"ENERO",2015]
["ELEMENTO / PUNTUACIÓN","ESCALA DE VALORACIÓN",null,null,null,null,null,null,null,"SÍ NO","Puntuación",null,"JUNIO",2016]
[null,"ÍTEMS",null,null,null,null,null,null,null,null,null,null,"JULIO",2017]
["1. Presentación del candidato","El alumno se presenta a la prueba con una actitud correcta y se dirige a los miembros del tribunal de manera respetuosa.",null,null,null,null,null,null,null,null,{"$f":"IF(L14=FALSE,0,0.5)","v":0},false,"SEPTIEMBRE",2018]
[{"$f":"K14+K15","v":0},"El alumno comienza su exposición con una presentación adecuada del trabajo que va a defender.",null,null,null,null,null,null,null,null,{"$f":"IF(L15=FALSE,0,0.5)","v":0},false,"NOVIEMBRE",2019]
["2. Estructura y contenido de la exposición","La presentación contiene una diapositiva inicial y otra al final en las que se recoge la información necesaria sobre el trabajo (título, nombre del alumno, titulación a la que opta, nombre del/los director/res y fecha de defensa).",null,null,null,null,null,null,null,null,{"$f":"IF(L16=FALSE,0,0.5)","v":0},false,null,2020]
[null,"La presentación comienza con un índice en el que se muestran los contenidos que se van a exponer.",null,null,null,null,null,null,null,null,0,false,null,2021]
[null,"La presentación contiene una introducción en la que se contextualiza adecuadamente el trabajo realizado, se presenta el tema y se plantean los objetivos a alcanzar.",null,null,null,null,null,null,null,null,0,false,null,2022]
[{"$f":"K16+K17+K18+K19+K20+K21","v":0},"La presentación aborda todos los aspectos recogidos en la estructura del trabajo.",null,null,null,null,null,null,null,null,0,false,null,2023]
[null,"La presentación comenta con detalle la metodología y principales aportaciones del trabajo, así como los resultados alcanzados, limitaciones y soluciones aportadas.",null,null,null,null,null,null,null,null,0,false,null,2024]
[null,"La presentación concluye con una exposición clara de las conclusiones a las que se ha llegado con el desarrollo del trabajo.",null,null,null,null,null,null,null,null,0,false,null,2025]
["3. Organización de la exposición y gestión del tiempo","El alumno ha gestionado adecuadamente su exposición, ajustándose al tiempo establecido para la presentación (máximo de 30 minutos). No ha sido necesario que el tribunal apremie al alumno para que finalice ni, por otro lado, ha terminado demasiado pronto (mínimo de 15 minutos).",null,null,null,null,null,null,null,null,0,false,null,2026]
[null,"El alumno ha sido capaz de transmitir clara y detalladamente todos los aspectos importantes del trabajo en el tiempo utilizado. No ha necesitado acelerar la presentación, o bien obviar algún contenido, para finalizar en el tiempo disponible.",null,null,null,null,null,null,null,null,0,false,null,2027]
[{"$f":"K22+K23+K24","v":0},"La presentación ha estado equilibrada en el reparto de tiempos, concediendo el alumno un tiempo mayor para la exposición de los aspectos, resultados y conclusiones más relevantes o innovadores del trabajo.",null,null,null,null,null,null,null,null,0,false,null,2028]
["4. Creatividad y uso de herramientas","La redacción de las diapositivas es correcta desde un punto de vista ortográfico y gramatical.",null,null,null,null,null,null,null,null,0,false,null,2029]
[null,"El texto es ameno y de fácil lectura tanto por su redacción, tamaño de letra, combinación de colores, extensión de bloques de texto, etc.",null,null,null,null,null,null,null,null,0,false,null,2030]
[{"$f":"K25+K26+K27+K28","v":0},"La presentación incluye elementos visuales como gráficos, tablas o imágenes. Estos elementos son relevantes, tienen el tamaño adecuado y se presentan con buena resolución, de tal modo que aumentan el interés o facilitan el seguimiento de la presentación.",null,null,null,null,null,null,null,null,0,false,null,2031]
[null,"El diseño y aspecto visual de la presentación son excelentes. Ha incorporado todos los medios creativos o herramientas necesarios para maximizar el interés del tribunal y el carácter ilustrativo de la presentación.",null,null,null,null,null,null,null,null,0,false,null,2032]
["5. Dominio de la exposición","El alumno muestra en todo momento una postura del cuerpo adecuada y relajada durante la exposición de su trabajo, manteniendo contacto visual con los miembros del tribunal y transmitiendo interés y entusiasmo por los contenidos que está transmitiendo.",null,null,null,null,null,null,null,null,0,false,null,2033]
[{"$f":"K29+K30+K31","v":0},"El alumno ha sido capaz de hablar claramente durante la exposición, mostrando serenidad y dominio del lenguaje a lo largo de la intervención, vocalizando correctamente y manteniendo un volumen de voz adecuado y lo suficientemente alto como para poder ser escuchado durante toda la presentación.",null,null,null,null,null,null,null,null,0,false,null,2034]
[null,"El alumno ha mostrado un alto dominio de los contenidos que ha presentado, no necesitando en exceso apoyarse en textos escritos o leer de manera continuada las propias diapositivas, y utilizando un lenguaje específico acorde a la temática presentada.",null,null,null,null,null,null,null,null,0,false,null,2035]
["6. Defensa del trabajo","El alumno ha respondido satisfactoriamente a todas las preguntas expuestas por los miembros del tribunal, evitando respuestas vagas o genéricas, y aportando ideas propias, conclusiones o valoraciones que indican el grado de madurez alcanzado en la realización del trabajo.",null,null,null,null,null,null,null,null,0,false,null,2036]
[{"$f":"K32+K33","v":0},"A la vista de las respuestas que el alumno ha aportado a las preguntas realizadas por los miembros del tribunal, el alumno ha demostrado que domina y conoce suficientemente el ámbito, problemática y temas que aborda su trabajo.",null,null,null,null,null,null,null,null,0,false]
["A. Valoración global",null,null,null,null,null,null,null,null,null,{"$f":"SUM(K14:K33)","v":0}]
["B. Puntuación de esta dimensión [A*0'3]",null,null,null,null,null,null,null,null,null,{"$f":"K34*0.3","v":0}]

{"sheet":"Evaluación Final Memoria","index":1,"n_rows":37,"n_cols":15,"rows_kept":37,"cut":false,"hidden":false,"merged":[[32,0,32,6],[11,0,12,8],[11,9,12,10],[7,0,7,2],[7,3,7,10],[8,0,8,1],[8,2,8,10],[9,2,9,10],[21,2,21,9],[22,2,22,9],[13,2,13,9],[14,2,14,9],[15,2,15,9],[16,2,16,9],[17,2,17,9],[0,0,6,0],[0,1,0,9],[0,10,6,10],[1,1,1,9],[2,1,2,9],[3,1,3,9],[4,1,4,9],[5,1,5,9],[6,1,6,9],[33,0,33,1],[33,2,33,6],[13,0,22,1],[23,0,29,1],[30,0,30,9],[31,0,31,6],[27,2,27,9],[28,2,28,9],[29,2,29,9],[23,2,23,9],[24,2,24,9],[25,2,25,9],[26,2,26,9],[18,2,18,9],[19,2,19,9],[20,2,20,9]]}
[null,"ESCUELA DE INGENIERÍAS INDUSTRIALES"]
[null,"UNIVERSIDAD DE EXTREMADURA"]
[null,"RÚBRICA PARA EVALUACIÓN FINAL DE LA"]
[null,"ASIGNATURA TFG-TFM"]
[null,"(NO es un Proyecto Técnico)"]
[null,"(Rellenar a partir de las evaluaciones de cada miembro del tribunal. La puntuación de la dimensión "]
[null,"“Memoria” se obtendrá como la media de las valoraciones recogidas en las rúbricas individuales)"]
["NOMBRE DEL ESTUDIANTE:",null,null,{"$f":"'Presentación y Defensa'!D8:K8","v":0}]
["TÍTULO DEL TRABAJO:",null,{"$f":"'Presentación y Defensa'!C9:K9","v":0}]
[null,null,{"$f":"'Presentación y Defensa'!C10:K10","v":0}]
["CONVOCATORIA:",null,{"$f":"'Presentación y Defensa'!C11","v":"ENERO"},"DE",{"$f":"'Presentación y Defensa'!E11","v":2015}]
["ELEMENTO",null,null,null,null,null,null,null,null,"CALIFICACIONES"]
[null,null,null,null,null,null,null,null,null,null,null,"NOTA TUTOR 1","NOTA TUTOR 2","NOTA TUTOR 3"]
["1. Evaluación de la Memoria ",null,"1. Justificación del tema y presentación de objetivos",null,null,null,null,null,null,null,{"$f":"AVERAGE(L14:N14)","v":0},0,0,0]
[null,null,"2. Estructura",null,null,null,null,null,null,null,{"$f":"AVERAGE(L15:N15)","v":0},0,0,0]
[null,null,"3. Contextualización, bibliografía y uso correcto de las fuentes de información",null,null,null,null,null,null,null,0,0,0,0]
[null,null,"4. Planteamiento metodológico/desarrollo tecnológico",null,null,null,null,null,null,null,0,0,0,0]
[null,null,"5. Resultados/soluciones técnicas",null,null,null,null,null,null,null,0,0,0,0]
[null,null,"6. Conclusiones",null,null,null,null,null,null,null,0,0,0,0]
[null,null,"7. Enfoque y creatividad",null,null,null,null,null,null,null,0,0,0,0]
[null,null,"8. Ortografía y redacción",null,null,null,null,null,null,null,0,0,0,0]
[null,null,"9. Formato",null,null,null,null,null,null,null,0,0,0,0]
[null,null,"A. CALIFICACIÓN DE LA MEMORIA [ (1.1 + 1.2 + 1.3 + 1.4 + 1.5 + 1.6 + 1.7 + 1.8 + 1.9) / 10 ]:",null,null,null,null,null,null,null,{"$f":"SUM(K14:K22)/10","v":0},{"$f":"(SUM(L14:L22)/10)","v":0},{"$f":"(SUM(M14:M22)/10)","v":0},0,{"$f":"AVERAGE(L23:N23)","v":0}]
["2. Presentación y defensa del Trabajo",null,"1. Presentación del candidato",null,null,null,null,null,null,null,{"$f":"'Presentación y Defensa'!A15","v":0}]
[null,null,"2. Estructura y contenido de la presentación",null,null,null,null,null,null,null,{"$f":"'Presentación y Defensa'!A19","v":0}]
[null,null,"3. Organización de la exposición y gestión del tiempo",null,null,null,null,null,null,null,{"$f":"'Presentación y Defensa'!A24","v":0}]
[null,null,"4. Creatividad y uso de herramientas",null,null,null,null,null,null,null,{"$f":"'Presentación y Defensa'!A27","v":0}]
[null,null,"5. Dominio de la exposición",null,null,null,null,null,null,null,{"$f":"'Presentación y Defensa'!A30","v":0}]
[null,null,"6. Defensa del trabajo",null,null,null,null,null,null,null,{"$f":"'Presentación y Defensa'!A33","v":0}]
[null,null,"A. CALIFICACIÓN DE LA PRESENTACIÓN Y DEFENSA [(2.1 + 2.2 + 2.3 + 2.4 + 2.5 + 2.6) * 0’3 ]:",null,null,null,null,null,null,null,{"$f":"SUM(K24:K29)*0.3","v":0}]
["CALIFICACIÓN FINAL [1.A + 2.A]",null,null,null,null,null,null,null,null,null,{"$f":"K23+K30","v":0}]
["PROPUESTA PARA MATRÍCULA DE HONOR (Sólo si la Calificación Final es >=9)",null,null,null,null,null,null,null,"SÍ",null,"NO"]
[]
["Fecha de defensa:",null,{"$f":"TODAY()","v":"2025-05-27"}]
[]
[]
["Firma del Secretario del Tribunal",null,null,null,"Firma del Presidente del Tribunal",null,null,null,null,null,"Firma del Vocal del Tribunal"]

{"sheet":"Evaluación Final PT","index":2,"n_rows":37,"n_cols":15,"rows_kept":37,"cut":false,"hidden":false,"merged":[[32,0,32,6],[0,0,6,0],[0,1,0,9],[0,10,6,10],[1,1,1,9],[2,1,2,9],[3,1,3,9],[4,1,4,9],[5,1,5,9],[6,1,6,9],[20,2,20,9],[21,2,21,9],[7,0,7,2],[7,3,7,10],[8,0,8,1],[8,2,8,10],[19,2,19,9],[30,0,30,9],[31,0,31,6],[9,2,9,10],[11,0,12,8],[11,9,12,10],[15,2,15,9],[16,2,16,9],[33,0,33,1],[33,2,33,6],[22,2,22,9],[23,0,29,1],[23,2,23,9],[24,2,24,9],[25,2,25,9],[26,2,26,9],[27,2,27,9],[28,2,28,9],[29,2,29,9],[13,0,22,1],[13,2,13,9],[14,2,14,9],[17,2,17,9],[18,2,18,9]]}
[null,"ESCUELA DE INGENIERÍAS INDUSTRIALES"]
[null,"UNIVERSIDAD DE EXTREMADURA"]
[null,"RÚBRICA PARA EVALUACIÓN FINAL DE LA"]
[null,"ASIGNATURA TFG-TFM"]
[null,"(SÍ es un Proyecto Técnico)"]
[null,"(Rellenar a partir de las evaluaciones de cada miembro del tribunal. La puntuación de la dimensión "]
[null,"“Memoria” se obtendrá como la media de las valoraciones recogidas en las rúbricas individuales)"]
["NOMBRE DEL ESTUDIANTE:",null,null,{"$f":"'Presentación y Defensa'!D8:K8","v":0}]
["TÍTULO DEL TRABAJO:",null,{"$f":"'Presentación y Defensa'!C9:K9","v":0}]
[null,null,{"$f":"'Presentación y Defensa'!C10:K10","v":0}]
["CONVOCATORIA:",null,{"$f":"'Presentación y Defensa'!C11","v":"ENERO"},"DE",{"$f":"'Presentación y Defensa'!E11","v":2015}]
["ELEMENTO",null,null,null,null,null,null,null,null,"CALIFICACIONES"]
[null,null,null,null,null,null,null,null,null,null,null,"NOTA TUTOR 1","NOTA TUTOR 2","NOTA TUTOR 3"]
["1. Evaluación del Proyecto Técnico",null,"1. Estructura del proyecto técnico",null,null,null,null,null,null,null,{"$f":"AVERAGE(L14:N14)","v":0},0,0,0]
[null,null,"2. Memoria",null,null,null,null,null,null,null,{"$f":"AVERAGE(L15:N15)","v":0},0,0,0]
[null,null,"3. Cálculos",null,null,null,null,null,null,null,0,0,0,0]
[null,null,"4. Anexos",null,null,null,null,null,null,null,0,0,0,0]
[null,null,"5. Planos",null,null,null,null,null,null,null,0,0,0,0]
[null,null,"6. Mediciones y presupuestos",null,null,null,null,null,null,null,0,0,0,0]
[null,null,"7. Enfoque y creatividad",null,null,null,null,null,null,null,0,0,0,0]
[null,null,"8. Ortografía y redacción",null,null,null,null,null,null,null,0,0,0,0]
[null,null,"9. Formato",null,null,null,null,null,null,null,0,0,0,0]
[null,null,"A. CALIFICACIÓN DE LA MEMORIA [ (1.1 + 1.2 + 1.3 + 1.4 + 1.5 + 1.6 + 1.7 + 1.8 + 1.9) / 10 ]:",null,null,null,null,null,null,null,{"$f":"SUM(K14:K22)/10","v":0},{"$f":"(SUM(L14:L22)/10)","v":0},{"$f":"(SUM(M14:M22)/10)","v":0},0,{"$f":"AVERAGE(L23:N23)","v":0}]
["2. Presentación y defensa del Trabajo",null,"1. Presentación del candidato",null,null,null,null,null,null,null,{"$f":"'Presentación y Defensa'!A15","v":0}]
[null,null,"2. Estructura y contenido de la presentación",null,null,null,null,null,null,null,{"$f":"'Presentación y Defensa'!A19","v":0}]
[null,null,"3. Organización de la exposición y gestión del tiempo",null,null,null,null,null,null,null,{"$f":"'Presentación y Defensa'!A24","v":0}]
[null,null,"4. Creatividad y uso de herramientas",null,null,null,null,null,null,null,{"$f":"'Presentación y Defensa'!A27","v":0}]
[null,null,"5. Dominio de la exposición",null,null,null,null,null,null,null,{"$f":"'Presentación y Defensa'!A30","v":0}]
[null,null,"6. Defensa del trabajo",null,null,null,null,null,null,null,{"$f":"'Presentación y Defensa'!A33","v":0}]
[null,null,"A. CALIFICACIÓN DE LA PRESENTACIÓN Y DEFENSA [(2.1 + 2.2 + 2.3 + 2.4 + 2.5 + 2.6) * 0’3 ]:",null,null,null,null,null,null,null,{"$f":"SUM(K24:K29)*0.3","v":0}]
["CALIFICACIÓN FINAL [1.A + 2.A]",null,null,null,null,null,null,null,null,null,{"$f":"K23+K30","v":0}]
["PROPUESTA PARA MATRÍCULA DE HONOR (Sólo si la Calificación Final es >=9)",null,null,null,null,null,null,null,"SÍ",null,"NO"]
[]
["Fecha de defensa:",null,{"$f":"TODAY()","v":"2025-05-27"}]
[]
[]
["Firma del Secretario del Tribunal",null,null,null,"Firma del Presidente del Tribunal",null,null,null,null,null,"Firma del Vocal del Tribunal"]